fUSD/lending_fUSD_20250216
["ID","MTS","AMOUNT","RATE_DAILY","PERIOD"]
[353257232,1739719863221,-1573.52,0.00011287,2]
[353257233,1739719863231,-950.54,0.00011287,2]
[353257234,1739719863240,-628.2,0.00011287,2]
[353257235,1739719863251,-1000.0,0.00011287,2]
[353257236,1739719863261,-1359.93,0.00011287,2]
[353257237,1739719863270,-500.0,0.00011287,2]
[353257238,1739719863280,-629.85,0.00011287,2]
[353257239,1739719863290,-500.0,0.00011287,2]
[353257240,1739719863301,-500.0,0.00011287,2]
[353257241,1739719863312,-1550.81,0.00011287,2]
[353257242,1739719863321,-1723.99,0.00011287,2]
[353257243,1739719863332,-937.03,0.00011287,2]
[353257244,1739719863341,-151.0,0.00011287,2]
[353257245,1739719863351,-1047.35,0.00011287,2]
[353257246,1739719863531,-835.09,0.00011287,2]
[353257247,1739719863542,-500.0,0.00011287,2]
[353257248,1739719863551,-989.7,0.00011287,2]
[353257249,1739719863560,-1680.52,0.00011287,2]
[353257250,1739719863570,-502.61,0.00011287,2]
[353257251,1739719863579,-2083.21,0.00011287,2]
[353257252,1739719863589,-1596.94,0.00011287,2]
[353257253,1739719863599,-685.52,0.00011287,2]
[353257254,1739719863609,-2108.61,0.00011287,2]
[353257255,1739719863618,-500.0,0.00011287,2]
[353257256,1739719863628,-1064.74,0.00011287,2]
[353257257,1739719863638,-500.0,0.00011287,2]
[353257258,1739719863648,-1852.92,0.00011287,2]
[353257259,1739719863657,-500.0,0.00011287,2]
[353257260,1739719863667,-704.43,0.00011287,2]
[353257261,1739719863677,-500.0,0.00011287,2]
[353257262,1739719863686,-500.0,0.00011287,2]
[353257263,1739719863696,-564.7,0.00011287,2]
[353257264,1739719863708,-726.22,0.00011287,2]
[353257265,1739719863717,-1272.36,0.00011287,2]
[353257266,1739719863727,-500.0,0.00011287,2]
[353257267,1739719863736,-500.0,0.00011287,2]
[353257268,1739719863746,-709.56,0.00011287,2]
[353257269,1739719863756,-500.0,0.00011287,2]
[353257270,1739719863766,-580.11,0.00011287,2]
[353257271,1739719863775,-1243.11,0.00011287,2]
[353257272,1739719863785,-1320.64,0.00011287,2]
[353257273,1739719863796,-500.0,0.00011287,2]
[353257274,1739719863805,-893.54,0.00011287,2]
[353257275,1739719863816,-636.44,0.00011287,2]
[353257276,1739719863826,-500.0,0.00011287,2]
[353257277,1739719863836,-748.46,0.00011287,2]
[353257278,1739719863846,-500.0,0.00011287,2]
[353257279,1739719863857,-500.0,0.00011287,2]
[353257280,1739719863867,-740.82,0.00011287,2]
[353257281,1739719863877,-500.0,0.00011287,2]
[353257282,1739719863887,-1055.86,0.00011287,2]
[353257283,1739719863897,-1117.63,0.00011287,2]
[353257284,1739719863907,-857.05,0.00011287,2]
[353257285,1739719863917,-500.0,0.00011287,2]
[353257286,1739719863926,-500.0,0.00011287,2]
[353257287,1739719863936,-500.0,0.00011287,2]
[353257288,1739719863945,-500.0,0.00011369,2]
[353257289,1739719863956,-385.23,0.00011369,2]
[353257290,1739719863966,-398.51,0.00011369,2]
[353257291,1739719863976,-518.98,0.00011369,2]
[353257292,1739719863987,-500.0,0.00011369,2]
[353257293,1739719863996,-509.66,0.00011369,2]
[353257294,1739719864006,-500.0,0.00011369,2]
[353257295,1739719864016,-500.0,0.00011369,2]
[353257296,1739719864026,-408.18173727,0.00011369,2]
[353257297,1739719864037,-500.0,0.00011369,2]
[353257298,1739719864047,-500.0,0.00011369,2]
[353257299,1739719864058,-500.0,0.00011369,2]
[353257300,1739719864068,-500.0,0.00011369,2]
[353257301,1739719864078,-500.0,0.00011369,2]
[353257302,1739719864088,-500.0,0.00011369,2]
[353257303,1739719864099,-500.0,0.00011369,2]
[353257304,1739719864109,-500.0,0.00011369,2]
[353257305,1739719864119,-500.0,0.00011369,2]
[353257306,1739719864128,-546.98,0.00011369,2]
[353257307,1739719864137,-778.31,0.00011369,2]
[353257308,1739719864147,-500.0,0.00011369,2]
[353257309,1739719864157,-720.05,0.00011369,2]
[353257310,1739719864166,-500.0,0.00011369,2]
[353257311,1739719864176,-500.0,0.00011369,2]
[353257312,1739719864186,-500.0,0.00011369,2]
[353257313,1739719864196,-982.93,0.00011369,2]
[353257314,1739719864206,-500.0,0.00011369,2]
[353257315,1739719864219,-610.07,0.00011369,2]
[353257316,1739719864229,-500.0,0.00011369,2]
[353257317,1739719864239,-812.65,0.00011369,2]
[353257318,1739719864249,-500.0,0.00011369,2]
[353257319,1739719864258,-500.0,0.00011369,2]
[353257320,1739719864268,-500.0,0.00011369,2]
[353257321,1739719864278,-491.5,0.00011369,2]
[353257322,1739719864288,-545.53,0.00011369,2]
[353257323,1739719864298,-500.0,0.00011369,2]
[353257324,1739719864308,-500.0,0.00011369,2]
[353257325,1739719864317,-500.0,0.00011369,2]
[353257326,1739719864327,-500.0,0.00011369,2]
[353257327,1739719864337,-500.0,0.00011369,2]
[353257328,1739719864347,-761.58,0.00011369,2]
[353257329,1739719864357,-500.0,0.00011369,2]
[353257330,1739719864367,-527.09,0.00011369,2]
[353257331,1739719864377,-500.0,0.00011369,2]
[353257332,1739719864388,-1082.54,0.00011369,2]
[353257333,1739719864399,-500.0,0.00011369,2]
[353257334,1739719864408,-797.05,0.00011369,2]
[353257335,1739719864418,-500.0,0.00011369,2]
[353257336,1739719864428,-717.56,0.00011369,2]
[353257337,1739719864439,-607.4,0.00011369,2]
[353257338,1739719864449,-500.0,0.00011369,2]
[353257339,1739719864460,-682.32,0.00011369,2]
[353257340,1739719864471,-500.0,0.00011369,2]
[353257341,1739719864481,-1095.09,0.00011369,2]
[353257342,1739719864491,-500.0,0.00011369,2]
[353257343,1739719864502,-500.0,0.00011369,2]
[353257344,1739719864512,-302.55,0.00011369,2]
[353257345,1739719864522,-196.65,0.00011369,2]
[353257346,1739719864532,-500.0,0.00011369,2]
[353257347,1739719864542,-500.0,0.00011369,2]
[353257348,1739719864552,-500.0,0.00011369,2]
[353257349,1739719864561,-500.0,0.00011369,2]
[353257350,1739719864572,-500.0,0.00011369,2]
[353257351,1739719864582,-500.0,0.00011369,2]
[353257352,1739719864592,-500.0,0.00011369,2]
[353257353,1739719864602,-500.0,0.00011369,2]
[353257354,1739719864611,-500.0,0.00011369,2]
[353257355,1739719864621,-500.0,0.00011369,2]
[353257356,1739719864631,-693.95,0.00011369,2]
[353257357,1739719864641,-752.79,0.00011369,2]
[353257358,1739719864651,-590.9,0.00011369,2]
[353257359,1739719864662,-606.73,0.00011369,2]
[353257360,1739719864671,-500.0,0.00011369,2]
[353257361,1739719864681,-624.98,0.00011369,2]
[353257362,1739719864691,-500.0,0.00011369,2]
[353257363,1739719864700,-500.0,0.00011369,2]
[353257364,1739719864710,-500.0,0.00011369,2]
[353257365,1739719864719,-500.0,0.00011369,2]
[353257366,1739719864729,-562.44,0.00011369,2]
[353257367,1739719864738,-791.35,0.00011369,2]
[353257368,1739719864748,-500.0,0.00011369,2]
[353257369,1739719864757,-500.0,0.00011369,2]
[353257370,1739719864766,-1070.44,0.00011369,2]
[353257371,1739719864776,-500.0,0.00011369,2]
[353257372,1739719864786,-887.17,0.00011369,2]
[353257373,1739719864795,-500.0,0.00011369,2]
[353257374,1739719864805,-801.39237,0.00011369,2]
[353257375,1739719864814,-658.15,0.00011369,2]
[353257376,1739719864824,-500.0,0.00011369,2]
[353257377,1739719864834,-500.0,0.00011369,2]
[353257378,1739719864843,-500.0,0.00011369,2]
[353257379,1739719864853,-723.28,0.00011369,2]
[353257380,1739719864863,-500.0,0.00011369,2]
[353257381,1739719864873,-615.74,0.00011369,2]
[353257382,1739719864883,-500.0,0.00011369,2]
[353257383,1739719864894,-1036.138115,0.00011369,2]
[353257384,1739719864903,-500.0,0.00011369,2]
[353257385,1739719864918,-500.0,0.00011369,2]
[353257386,1739719864936,-500.0,0.00011369,2]
[353257387,1739719864950,-500.0,0.00011369,2]
[353257388,1739719864966,-500.0,0.00011369,2]
[353257389,1739719864982,-500.0,0.00011369,2]
[353257390,1739719865000,-500.0,0.00011369,2]
[353257391,1739719865013,-500.0,0.00011369,2]
[353257392,1739719865025,-572.03072905,0.00011369,2]
[353257393,1739719865040,-500.0,0.00011369,2]
[353257394,1739719865055,-1142.85,0.00011369,2]
[353257395,1739719865070,-500.0,0.00011369,2]
[353257396,1739719865087,-500.0,0.00011369,2]
[353257397,1739719865102,-500.0,0.00011369,2]
[353257398,1739719865117,-572.02,0.00011369,2]
[353257399,1739719865131,-500.0,0.00011369,2]
[353257400,1739719865145,-500.0,0.00011369,2]
[353257401,1739719865159,-564.69,0.00011369,2]
[353257402,1739719865175,-551.48,0.00011369,2]
[353257403,1739719865189,-676.69,0.00011369,2]
[353257404,1739719865202,-500.0,0.00011369,2]
[353257405,1739719865218,-615.32,0.00011369,2]
[353257406,1739719865234,-500.0,0.00011369,2]
[353257407,1739719865245,-500.0,0.00011369,2]
[353257408,1739719865259,-594.63,0.00011369,2]
[353257409,1739719865276,-500.0,0.00011369,2]
[353257410,1739719865287,-647.43,0.00011369,2]
[353257411,1739719865301,-605.03,0.00011369,2]
[353257412,1739719865314,-737.6,0.00011369,2]
[353257413,1739719865328,-500.0,0.00011369,2]
[353257414,1739719865341,-500.0,0.00011369,2]
[353257415,1739719865355,-677.67,0.00011369,2]
[353257416,1739719865368,-856.01,0.00011369,2]
[353257417,1739719865382,-580.88,0.00011369,2]
[353257418,1739719865395,-500.0,0.00011369,2]
[353257419,1739719865408,-500.0,0.00011369,2]
[353257420,1739719865422,-500.0,0.00011369,2]
[353257421,1739719865436,-500.0,0.00011369,2]
[353257422,1739719865448,-547.28,0.00011369,2]
[353257423,1739719865462,-659.59,0.00011369,2]
[353257424,1739719865475,-500.0,0.00011369,2]
[353257425,1739719865488,-500.0,0.00011369,2]
[353257426,1739719865501,-500.0,0.00011369,2]
[353257427,1739719865513,-500.0,0.00011369,2]
[353257428,1739719865526,-500.0,0.00011369,2]
[353257429,1739719865539,-679.65,0.00011369,2]
[353257430,1739719865556,-635.55,0.00011369,2]
[353257431,1739719865568,-500.0,0.00011369,2]
[353257432,1739719865580,-1531.02,0.00011369,2]
[353257433,1739719865593,-500.0,0.00011369,2]
[353257434,1739719865605,-500.0,0.00011369,2]
[353257435,1739719865617,-710.02,0.00011369,2]
[353257436,1739719865630,-552.24,0.00011369,2]
[353257437,1739719865643,-609.92,0.00011369,2]
[353257438,1739719865655,-775.33,0.00011369,2]
[353257439,1739719865668,-927.32,0.00011369,2]
[353257440,1739719865681,-1091.82,0.00011369,2]
[353257441,1739719865693,-833.8,0.00011369,2]
[353257442,1739719865706,-713.28,0.00011369,2]
[353257443,1739719865720,-2162.44,0.00011369,2]
[353257444,1739719865732,-500.0,0.00011369,2]
[353257445,1739719865745,-661.28,0.00011369,2]
[353257446,1739719865758,-763.65,0.00011369,2]
[353257447,1739719865772,-500.0,0.00011369,2]
[353257448,1739719865785,-500.0,0.00011369,2]
[353257449,1739719865797,-696.46,0.00011369,2]
[353257450,1739719865811,-1505.24,0.00011369,2]
[353257451,1739719865825,-500.0,0.00011369,2]
[353257452,1739719865837,-500.0,0.00011369,2]
[353257453,1739719865850,-910.39,0.00011369,2]
[353257454,1739719865862,-1016.22,0.00011369,2]
[353257455,1739719865875,-1653.06,0.00011369,2]
[353257456,1739719865887,-840.07,0.00011369,2]
[353257457,1739719865903,-500.0,0.00011369,2]
[353257458,1739719865916,-997.87,0.00011369,2]
[353257459,1739719865927,-1941.86,0.00011369,2]
[353257460,1739719865941,-1341.68,0.00011369,2]
[353257461,1739719865954,-500.0,0.00011369,2]
[353257462,1739719865966,-500.0,0.00011369,2]
[353257463,1739719865979,-960.55,0.00011369,2]
[353257464,1739719865992,-500.0,0.00011369,2]
[353257465,1739719866005,-1590.08,0.00011369,2]
[353257466,1739719866017,-500.0,0.00011369,2]
[353257467,1739719866030,-1316.29,0.00011369,2]
[353257468,1739719866042,-628.04,0.00011369,2]
[353257469,1739719866054,-967.16,0.00011369,2]
[353257470,1739719866067,-500.0,0.00011369,2]
[353257471,1739719866079,-1082.77,0.00011369,2]
[353257472,1739719866092,-4185.89,0.00011369,2]
[353257473,1739719866105,-537.42,0.00011369,2]
[353257474,1739719866118,-1148.65,0.00011369,2]
[353257475,1739719866130,-522.8,0.00011369,2]
[353257476,1739719866143,-500.0,0.00011369,2]
[353257477,1739719866155,-1133.71,0.00011369,2]
[353257478,1739719866168,-1188.19,0.00011369,2]
[353257479,1739719866180,-500.0,0.00011369,2]
[353257480,1739719866193,-1545.2,0.00011369,2]
[353257481,1739719866206,-500.0,0.00011369,2]
[353257482,1739719866222,-1208.7,0.00011369,2]
[353257483,1739719866235,-500.0,0.00011369,2]
[353257484,1739719866247,-3059.32,0.00011369,2]
[353257485,1739719866261,-500.0,0.00011369,2]
[353257486,1739719866273,-575.61,0.00011369,2]
[353257487,1739719866285,-1330.36,0.00011369,2]
[353257488,1739719866301,-500.0,0.00011369,2]
[353257489,1739719866313,-1260.47,0.00011369,2]
[353257490,1739719866325,-944.72,0.00011369,2]
[353257491,1739719866339,-657.52,0.00011369,2]
[353257492,1739719866351,-656.43,0.00011369,2]
[353257493,1739719866364,-533.75,0.00011369,2]
[353257494,1739719866377,-542.69,0.00011369,2]
[353257495,1739719866389,-500.0,0.00011369,2]
[353257496,1739719866401,-1280.71,0.00011369,2]
[353257497,1739719866422,-1667.11,0.00011369,2]
[353257498,1739719866438,-1761.78,0.00011369,2]
[353257499,1739719866452,-616.81,0.00011369,2]
[353257500,1739719866465,-655.49,0.00011369,2]
[353257501,1739719866478,-765.75,0.00011369,2]
[353257502,1739719866491,-954.99,0.00011369,2]
[353257503,1739719866505,-510.92,0.00011369,2]
[353257504,1739719866518,-1071.72,0.00011369,2]
[353257505,1739719866531,-898.62,0.00011369,2]
[353257506,1739719866545,-963.74,0.00011369,2]
[353257507,1739719866559,-265.04088172,0.00011369,2]
[353257508,1739719866571,-500.0,0.00011369,2]
[353257509,1739719866583,-500.0,0.00011369,2]
[353257510,1739719866595,-1095.34,0.00011369,2]
[353257511,1739719866608,-500.0,0.00011369,2]
[353257512,1739719866621,-1432.53,0.00011369,2]
[353257513,1739719866634,-1288.05,0.00011369,2]
[353257514,1739719866646,-1131.27,0.00011369,2]
[353257515,1739719866655,-1497.56,0.00011369,2]
[353257516,1739719866666,-1710.67,0.00011369,2]
[353257517,1739719866676,-938.67,0.00011369,2]
[353257518,1739719866686,-500.0,0.00011369,2]
[353257519,1739719866695,-922.59,0.00011369,2]
[353257520,1739719866705,-500.0,0.00011369,2]
[353257521,1739719866983,-1297.94,0.00011369,2]
[353257522,1739719866998,-500.0,0.00011369,2]
[353257523,1739719867007,-1275.03,0.00011369,2]
[353257524,1739719867017,-1207.44,0.00011369,2]
[353257525,1739719867026,-857.03,0.00011369,2]
[353257526,1739719867036,-1139.27,0.00011369,2]
[353257527,1739719867045,-989.2,0.00011369,2]
[353257528,1739719867054,-2609.71,0.00011369,2]
[353257529,1739719867063,-2357.36,0.00011369,2]
[353257530,1739719867073,-948.68,0.00011369,2]
[353257531,1739719867082,-500.0,0.00011369,2]
[353257532,1739719867091,-500.0,0.00011369,2]
[353257533,1739719867100,-1322.5,0.00011369,2]
[353257534,1739719867109,-745.27,0.00011369,2]
[353257535,1739719867119,-1014.65,0.00011369,2]
[353257536,1739719867128,-732.97,0.00011369,2]
[353257537,1739719867137,-3965.85,0.00011369,2]
[353257538,1739719867146,-1054.68,0.00011369,2]
[353257539,1739719867155,-1445.76,0.00011369,2]
[353257540,1739719867164,-500.0,0.00011369,2]
[353257541,1739719867174,-1029.25,0.00011369,2]
[353257542,1739719867183,-647.83,0.00011369,2]
[353257543,1739719867192,-500.0,0.00011369,2]
[353257544,1739719867201,-588.16,0.00011369,2]
[353257545,1739719867210,-500.0,0.00011369,2]
[353257546,1739719867222,-1129.52,0.00011369,2]
[353257547,1739719867231,-1589.44,0.00011369,2]
[353257548,1739719867239,-500.0,0.00011369,2]
[353257549,1739719867248,-1428.0,0.00011369,2]
[353257550,1739719867259,-856.52,0.00011369,2]
[353257551,1739719867267,-1397.84,0.00011369,2]
[353257552,1739719867277,-2006.41,0.00011369,2]
[353257553,1739719867286,-1495.83,0.00011369,2]
[353257554,1739719867297,-2283.55,0.00011369,2]
[353257555,1739719867306,-1573.52,0.00011369,2]
[353257556,1739719867315,-950.54,0.00011369,2]
[353257557,1739719867324,-1000.0,0.00011369,2]
[353257558,1739719867333,-1359.93,0.00011369,2]
[353257559,1739719867343,-500.0,0.00011369,2]
[353257560,1739719867352,-629.85,0.00011369,2]
[353257561,1739719867362,-500.0,0.00011369,2]
[353257562,1739719867371,-500.0,0.00011369,2]
[353257563,1739719867380,-1550.81,0.00011369,2]
[353257564,1739719867388,-1723.99,0.00011369,2]
[353257565,1739719867398,-937.03,0.00011369,2]
[353257566,1739719867407,-1047.35,0.00011369,2]
[353257567,1739719867417,-835.09,0.00011369,2]
[353257568,1739719867426,-332.33021901,0.00011369,2]
[353257569,1739719867435,-989.7,0.00011369,2]
[353257570,1739719867444,-1680.52,0.00011369,2]
[353257571,1739719867454,-502.61,0.00011369,2]
[353257572,1739719867463,-2083.21,0.00011369,2]
[353257573,1739719867472,-1596.94,0.00011369,2]
[353257574,1739719867481,-685.52,0.00011369,2]
[353257575,1739719867491,-2108.61,0.00011369,2]
[353257576,1739719867500,-500.0,0.00011369,2]
[353257577,1739719867509,-1064.74,0.00011369,2]
[353257578,1739719867519,-500.0,0.00011369,2]
[353257579,1739719867528,-1852.92,0.00011369,2]
[353257580,1739719867538,-500.0,0.00011369,2]
[353257581,1739719867547,-704.43,0.00011369,2]
[353257582,1739719867556,-500.0,0.00011369,2]
[353257583,1739719867568,-500.0,0.00011369,2]
[353257584,1739719867577,-564.7,0.00011369,2]
[353257585,1739719867586,-726.22,0.00011369,2]
[353257586,1739719867596,-1272.36,0.00011369,2]
[353257587,1739719867605,-500.0,0.00011369,2]
[353257588,1739719867614,-500.0,0.00011369,2]
[353257589,1739719867623,-709.56,0.00011369,2]
[353257590,1739719867632,-500.0,0.00011369,2]
[353257591,1739719867641,-580.11,0.00011369,2]
[353257592,1739719867650,-1243.11,0.00011369,2]
[353257593,1739719867659,-1320.64,0.00011369,2]
[353257594,1739719867669,-500.0,0.00011369,2]
[353257595,1739719867678,-893.54,0.00011369,2]
[353257596,1739719867688,-636.44,0.00011369,2]
[353257597,1739719867699,-500.0,0.00011369,2]
[353257598,1739719867709,-748.46,0.00011369,2]
[353257599,1739719867718,-500.0,0.00011369,2]
[353257600,1739719867728,-500.0,0.00011369,2]
[353257601,1739719867737,-740.82,0.00011369,2]
[353257602,1739719867746,-1055.86,0.00011369,2]
[353257603,1739719867755,-500.0,0.00011369,2]
[353257604,1739719867765,-1117.63,0.00011369,2]
[353257605,1739719867774,-857.05,0.00011369,2]
[353257606,1739719867783,-500.0,0.00011369,2]
[353257607,1739719867793,-500.0,0.00011369,2]
[353257608,1739719867802,-800.0,0.00011418,2]
[353257609,1739719867811,-800.0,0.00011418,2]
[353257610,1739719867820,-500.0,0.00011423,2]
[353257611,1739719867829,-500.0,0.00011451,2]
[353257612,1739719867839,-500.0,0.00011451,2]
[353257613,1739719867848,-500.0,0.00011451,2]
[353257614,1739719867857,-500.0,0.00011451,2]
[353257615,1739719867866,-452.56706873,0.00011451,2]
[353257616,1739719867875,-216.2917804,0.00011451,2]
[353257617,1739719867884,-500.0,0.00011451,2]
[353257618,1739719867893,-500.0,0.00011451,2]
[353257619,1739719867903,-500.0,0.00011451,2]
[353257620,1739719867912,-500.0,0.00011451,2]
[353257621,1739719867921,-500.0,0.00011451,2]
[353257622,1739719867930,-245.99594221,0.00011451,2]
[353257623,1739719867940,-500.0,0.00011451,2]
[353257624,1739719867950,-500.0,0.00011451,2]
[353257625,1739719867959,-500.0,0.00011451,2]
[353257626,1739719867969,-500.0,0.00011451,2]
[353257627,1739719867979,-500.0,0.00011451,2]
[353257628,1739719867989,-579.39655358,0.00011451,2]
[353257629,1739719867999,-500.0,0.00011451,2]
[353257630,1739719868008,-500.0,0.00011451,2]
[353257631,1739719868018,-500.0,0.00011451,2]
[353257632,1739719868028,-500.0,0.00011451,2]
[353257633,1739719868037,-500.0,0.00011451,2]
[353257634,1739719868047,-500.0,0.00011451,2]
[353257635,1739719868056,-500.0,0.00011451,2]
[353257636,1739719868066,-500.0,0.00011451,2]
[353257637,1739719868075,-1091.82,0.00011451,2]
[353257638,1739719868086,-500.0,0.00011451,2]
[353257639,1739719868095,-1505.24,0.00011451,2]
[353257640,1739719868105,-910.39,0.00011451,2]
[353257641,1739719868115,-1653.06,0.00011451,2]
[353257642,1739719868125,-1341.68,0.00011451,2]
[353257643,1739719868135,-500.0,0.00011451,2]
[353257644,1739719868146,-1590.08,0.00011451,2]
[353257645,1739719868155,-500.0,0.00011451,2]
[353257646,1739719868164,-4185.89,0.00011451,2]
[353257647,1739719868174,-1188.19,0.00011451,2]
[353257648,1739719868183,-500.0,0.00011451,2]
[353257649,1739719868194,-500.0,0.00011451,2]
[353257650,1739719868203,-172.06,0.00011451,2]
[353257651,1739719868214,-944.72,0.00011451,2]
[353257652,1739719868226,-500.0,0.00011451,2]
[353257653,1739719868235,-1095.34,0.00011451,2]
[353257654,1739719868244,-1710.67,0.00011451,2]
[353257655,1739719868254,-500.0,0.00011451,2]
[353257656,1739719868265,-500.0,0.00011451,2]
[353257657,1739719868274,-989.2,0.00011451,2]
[353257658,1739719868284,-250.74,0.00011451,2]
[353257659,1739719868293,-1445.76,0.00011451,2]
[353257660,1739719868303,-500.0,0.00011451,2]
[353257661,1739719868312,-1428.0,0.00011451,2]
[353257662,1739719868321,-1000.0,0.00011451,2]
[353257663,1739719868331,-539.39,0.00011451,2]
[353257664,1739719868341,-1550.81,0.00011451,2]
[353257665,1739719868350,-2083.21,0.00011451,2]
[353257666,1739719868359,-500.0,0.00011451,2]
[353257667,1739719868369,-1852.92,0.00011451,2]
[353257668,1739719868379,-366.69,0.00011451,2]
[353257669,1739719868388,-500.0,0.00011451,2]
[353257670,1739719868397,-500.0,0.00011451,2]
[353257671,1739719868406,-500.0,0.00011451,2]
[353257672,1739719868416,-151.0,0.00011452,2]
[353257673,1739719868425,-500.0,0.00011452,2]
[353257674,1739719868435,-500.0,0.00011452,2]
[353257675,1739719868444,-509.66,0.00011452,2]
[353257676,1739719868454,-500.0,0.00011452,2]
[353257677,1739719868463,-500.0,0.00011452,2]
[353257678,1739719868472,-500.0,0.00011452,2]
[353257679,1739719868482,-500.0,0.00011452,2]
[353257680,1739719868491,-500.0,0.00011452,2]
[353257681,1739719868501,-500.0,0.00011452,2]
[353257682,1739719868510,-546.98,0.00011452,2]
[353257683,1739719868519,-778.31,0.00011452,2]
[353257684,1739719868528,-500.0,0.00011452,2]
[353257685,1739719868537,-720.05,0.00011452,2]
[353257686,1739719868546,-500.0,0.00011452,2]
[353257687,1739719868555,-982.93,0.00011452,2]
[353257688,1739719868565,-500.0,0.00011452,2]
[353257689,1739719868574,-610.07,0.00011452,2]
[353257690,1739719868583,-812.65,0.00011452,2]
[353257691,1739719868592,-500.0,0.00011452,2]
[353257692,1739719868601,-570.98,0.00011452,2]
[353257693,1739719868610,-500.0,0.00011452,2]
[353257694,1739719868619,-500.0,0.00011452,2]
[353257695,1739719868628,-500.0,0.00011452,2]
[353257696,1739719868637,-500.0,0.00011452,2]
[353257697,1739719868650,-761.58,0.00011452,2]
[353257698,1739719868659,-500.0,0.00011452,2]
[353257699,1739719868668,-527.09,0.00011452,2]
[353257700,1739719868677,-500.0,0.00011452,2]
[353257701,1739719868686,-1082.54,0.00011452,2]
[353257702,1739719868695,-500.0,0.00011452,2]
[353257703,1739719868705,-797.05,0.00011452,2]
[353257704,1739719868714,-500.0,0.00011452,2]
[353257705,1739719868724,-717.56,0.00011452,2]
[353257706,1739719868733,-607.4,0.00011452,2]
[353257707,1739719868743,-500.0,0.00011452,2]
[353257708,1739719868752,-682.32,0.00011452,2]
[353257709,1739719868761,-500.0,0.00011452,2]
[353257710,1739719868770,-1095.09,0.00011452,2]
[353257711,1739719868779,-500.0,0.00011452,2]
[353257712,1739719868789,-500.0,0.00011452,2]
[353257713,1739719868798,-500.0,0.00011452,2]
[353257714,1739719868808,-500.0,0.00011452,2]
[353257715,1739719868818,-460.89,0.00011452,2]
[353257716,1739719868827,-500.0,0.00011452,2]
[353257717,1739719868836,-500.0,0.00011452,2]
[353257718,1739719868846,-693.95,0.00011452,2]
[353257719,1739719868856,-752.79,0.00011452,2]
[353257720,1739719868865,-606.73,0.00011452,2]
[353257721,1739719868876,-500.0,0.00011452,2]
[353257722,1739719868885,-624.98,0.00011452,2]
[353257723,1739719868895,-500.0,0.00011452,2]
[353257724,1739719868905,-500.0,0.00011452,2]
[353257725,1739719868915,-500.0,0.00011452,2]
[353257726,1739719868925,-562.44,0.00011452,2]
[353257727,1739719868935,-791.35,0.00011452,2]
[353257728,1739719868945,-348.96,0.00011452,2]
[353257729,1739719868954,-436.89727826,0.00011452,2]
[353257730,1739719868964,-1070.44,0.00011452,2]
[353257731,1739719868973,-500.0,0.00011452,2]